Cogmind - Beta 15 @@@ ROGUE MODE // 2025.06.16 @ 21:54:30 Player: Envian Result: Destroyed by as-58843 with Assembled Heavy Rifle Performance ------------- Evolutions (0) 0 Regions Visited (3) 600 Robots Destroyed (20) 100 Value Destroyed (475) 475 Prototype IDs (0) 0 Alien Tech Used (0) 0 Bonus (7) 7 TOTAL SCORE: 1182 Bonus ------- Follower Combat Kills 7 Cogmind --------- Core Integrity 0/250 Matter 231/300 Energy 100/100 System Corruption 4% Temperature Cool (0) Movement Walking (190) Ox1 Location -10/Exiles Parts ------- > --- POWER (1) -------- (None) > --- PROPULSION (2) --- Aluminum Leg Aluminum Leg > --- UTILITY (2) ------ Large Storage Unit Improved Targeting Computer > --- WEAPON (2) ------- Heavy Assault Rifle > --- INVENTORY (15) --- Improved Heat Sink Weight Redist. System Structural Scanner ECM Suite Improved Light Armor Plating Hacking Suite Heavy Assault Rifle Datajack Datajack Mining Claw Peak State ------------ > --- POWER ------------ Light Nuclear Core > --- PROPULSION ------- Aluminum Leg Aluminum Leg > --- UTILITY ---------- Large Storage Unit Improved Targeting Computer > --- WEAPON ----------- Heavy Assault Rifle Grenade Launcher > --- INVENTORY -------- Aluminum Leg Aluminum Leg Improved Heat Sink Weight Redist. System Structural Scanner ECM Suite Improved Light Armor Plating Hacking Suite Heavy Assault Rifle Heavy Assault Rifle Datajack Datajack Mining Claw [Rating: 13] Favorites ----------- Power Ion Engine Engine Ion Engine Power Core Light Nuclear Core Propulsion Aluminum Leg Leg Aluminum Leg Utility Improved Targeting Computer Storage Large Storage Unit Processor Improved Targeting Computer Weapon Heavy Assault Rifle Ballistic Gun Heavy Assault Rifle Launcher Grenade Launcher Build | -11 -10 -10 -10 ------- Run | Yrd Mat Min Exi Slots Evolved . | . . . . Power . | . . . . Propulsion . | . . . . Utility . | . . . . Weapon . | . . . . Parts Attached 16 | 6 6 4 . Power 2 | 1 . 1 . Engine 1 | 1 . . . Core 1 | . . 1 . Reactor . | . . . . Propulsion 4 | 2 1 1 . Treads . | . . . . Leg 4 | 2 1 1 . Wheel . | . . . . Hover . | . . . . Flight . | . . . . Utility 3 | 1 2 . . Device . | . . . . Storage 2 | 1 1 . . Processor 1 | . 1 . . Hackware . | . . . . Protection . | . . . . Artifact . | . . . . Weapon 7 | 2 3 2 . Energy Gun . | . . . . Energy Cannon . | . . . . Ballistic Gun 6 | 2 3 1 . Ballistic Cannon . | . . . . Launcher 1 | . . 1 . Special Weapon . | . . . . Impact Weapon . | . . . . Slashing Weapon . | . . . . Piercing Weapon . | . . . . Special Melee Weapon . | . . . . Unidentified Prototypes . | . . . . Parts Lost 7 | . . 5 2 Power 2 | . . 1 1 Propulsion 2 | . . 2 . Utility . | . . . . Weapon 3 | . . 2 1 Highest Loss Streak 2 | . . 2 2 To Critical Strikes 1 | . . . 1 Average Backups 8 | . 7 12 10 Power . | . . . . Propulsion 1 | . 1 . . Utility 3 | . 2 5 6 Weapon 2 | . 2 3 2 Tool/Special . | . . . . Unused Backups 11 | . 2 . 9 Power 1 | . 1 . . Propulsion 1 | . 1 . . Utility 6 | . . . 6 Weapon 1 | . . . 1 Tool/Special 2 | . . . 2 Average Slot Usage (%) 97 | . 97 98 97 Engine 10 | . 14 3 . Core 3 | . . 10 12 Leg 28 | . 28 28 28 Storage 14 | . 14 14 14 Processor 12 | . 11 14 14 Ballistic Gun 25 | . 28 17 26 Launcher 2 | . . 9 . Peak Build Rating 13 | 6 12 13 13 Average Rating 10 | 4 10 12 12 On Entrance 7 | . 6 12 13 Naked Turns . | . . . . Heaviest Build 31 | 14 31 31 31 Greatest Support 20 | 20 20 20 20 Greatest Overweight (x) 3 | . 1 3 1 Average Overweight (x) . | . . 1 1 Largest Inventory Capacity 15 | 8 15 15 15 Average Capacity 12 | 7 11 15 15 Most Carried 14 | 5 14 14 10 Average Carried 8 | 1 7 11 10 Final Capacity 15 | 8 15 15 15 Final Carried 14 | . 14 10 10 Class Distribution -------------------- 100% | Mutant Dominant Class ---------------- Mutant | -10/Materials Mutant | -10/Mines Mutant | -10/Exiles Resources | -11 -10 -10 -10 ----------- Run | Yrd Mat Min Exi Matter Collected 789 | 245 335 209 . Remotely . | . . . . Salvage Created 859 | . 731 109 19 Parts 51 | . 39 12 . Haulers Intercepted 2 | . 2 . . Recyclers Shooed 2 | . 2 . . Parts Field Recycled . | . . . . Retrieved Matter . | . . . . Parts Self-Destructed . | . . . . Prevented . | . . . . Kills | -11 -10 -10 -10 ------- Run | Yrd Mat Min Exi Combat Hostiles Destroyed 28 | . 7 20 1 Guns 8 | . 7 . 1 AOE 20 | . . 20 . Classes Destroyed 9 | . 5 4 . Builder 1 | . . 1 . Hauler 2 | . 2 . . Recycler 3 | . 3 . . Operator 1 | . 1 . . Watcher 2 | . 2 . . Swarmer 2 | . . 2 . Grunt 7 | . 7 . . Demolisher 2 | . . 2 . Assembled 17 | . . 16 1 Best Kill Streak 15 | . 3 15 1 Combat Bots Only 14 | . 2 14 1 Max Kills in Single Turn 3 | . 2 3 1 Gunslinging . | . . . . Exploded 3 | . . 3 . Melee . | . . . . Uniques/NPCs Destroyed . | . . . . Combat | -11 -10 -10 -10 -------- Run | Yrd Mat Min Exi Hostile Shots Fired 99 | . 22 28 49 Missed 37 | . 7 8 22 Hits 62 | . 15 20 27 Melee 1 | . . 1 . Projectile 61 | . 15 19 27 AOE 6 | . . 6 . Critical Strikes 6 | . 2 1 3 Damage Taken 1107 | . 199 514 394 Core 253 | . 11 109 133 Absorbed by Shields . | . . . . Core Remaining (%) 100 | 100 . . . Volleys Fired 65 | . 37 20 8 Largest 2 | . 2 1 2 Hottest 46 | . 46 30 46 Shots Fired 105 | . 75 20 10 Gun 86 | . 75 1 10 Cannon . | . . . . Launcher 19 | . . 19 . Special . | . . . . Kinetic 86 | . 75 1 10 Thermal . | . . . . Explosive 19 | . . 19 . Electromagnetic . | . . . . Robot Hit Streak 5 | . 5 4 2 Robot Miss Streak 4 | . 4 1 2 Penetration Max . | . . . . Secondary Targets 2 | . 2 . . Max Gunslinging Chain 1 | . 1 . . Shots Hit Robots 48 | . 36 7 5 Core Hits 66 | . 19 44 3 Critical Kills . | . . . . Critical Parts Destroyed . | . . . . Critical Strikes . | . . . . Melee Attacks . | . . . . Impact . | . . . . Slashing . | . . . . Piercing . | . . . . Sneak Attacks . | . . . . Combat Hostiles . | . . . . Follow-up Attacks . | . . . . Damage Inflicted 1745 | . 601 1053 91 Guns 699 | . 593 15 91 Cannons . | . . . . Explosions 1031 | . . 1031 . Melee . | . . . . Ramming 15 | . 8 7 . Kinetic 699 | . 593 15 91 Thermal . | . . . . Explosive 1031 | . . 1031 . Electromagnetic . | . . . . Impact . | . . . . Slashing . | . . . . Piercing . | . . . . Highest Corruption 4 | . 4 4 4 Average Corruption 3 | . 3 4 4 Corruption Purged . | . . . . Corruption Blocked . | . . . . Effects 41 | . 32 8 1 Message Errors 8 | . 5 3 . Matter Fused 11 | . 10 1 . Heat Flow Errors 5 | . 3 2 . Energy Discharges 5 | . 4 1 . Parts Rejected 1 | . 1 . . Data Loss (minor) 4 | . 4 . . Data Loss (major) 3 | . 2 1 . Misfires 3 | . 2 . 1 Weapon Failures 1 | . 1 . . Overload Shots . | . . . . Overflow Damage 3 | . . 3 . Projectiles . | . . . . Explosions 3 | . . 3 . Melee . | . . . . Knockbacks 1 | . 1 . . Impact 1 | . 1 . . Kinetic . | . . . . Secondary . | . . . . Self-Inflicted Damage 31 | . . 31 . Shots 1 | . . 1 . Rammed . | . . . . Targets Rammed 4 | . 1 3 . Kicked 4 | . 1 3 . Crushed . | . . . . Highest Temperature 268 | . 234 268 8 Average Temperature 96 | . 84 123 8 Received Heat Transfer 147 | . 147 . . Siege Activations . | . . . . Martial Activations . | . . . . Shielding Activations . | . . . . Robots Disrupted . | . . . . Combat Hostiles . | . . . . Robots Corrupted . | . . . . Combat Hostiles . | . . . . Parts Fried . | . . . . Impact Corruptions . | . . . . Robots Melted . | . . . . Combat Hostiles . | . . . . Parts Melted . | . . . . Heat Transferred . | . . . . Parts Sabotaged . | . . . . Parts Stolen . | . . . . Parts Stripped . | . . . . Power Chain Reactions . | . . . . Alert | -11 -10 -10 -10 ------- Run | Yrd Mat Min Exi Maximum Alert Level . | . . . . Low Security (%) 100 | 100 100 100 . Level 1 . | . . . . Level 2 . | . . . . Level 3 . | . . . . Level 4 . | . . . . Level 5 . | . . . . High Security . | . . . . Max Security . | . . . . Peak Influence 88 | . 56 88 . Initial . | . . . . Average 11 | . 10 13 . Influence Increases 468 | . 256 212 . Destroy 0b10 Robot/C 240 | . 140 100 . Destroy 0b10 Robot/NC 45 | . 40 5 . Destroy Leader 58 | . 38 20 . Allied During Kill 7 | . . 7 . Successful Hack 35 | . 35 . . Disable Machine 15 | . . 15 . Destroy Structure 68 | . 3 65 . Influence Decreases 468 | . 256 148 64 Entered New Map 64 | . . . 64 Time Decay 351 | . 256 95 . Lost Part 50 | . . 50 . Lost Ally 3 | . . 3 . Squads Dispatched 1 | . 1 . . Investigation . | . . . . Extermination . | . . . . Reinforcement 1 | . 1 . . Assault . | . . . . Garrison . | . . . . Intercept . | . . . . Searches Triggered . | . . . . Construction Impeded . | . . . . Haulers Reinforced . | . . . . Active Scanning Responses . | . . . . Cargo Convoy Interrupts . | . . . . Stealth | -11 -10 -10 -10 --------- Run | Yrd Mat Min Exi Distress Signals . | . . . . Communications Jammed . | . . . . Distress Signals . | . . . . Times Spotted 48 | . 18 22 8 Peak Tracking Total 10 | . 4 10 9 Tactical Retreats . | . . . . Traps | -11 -10 -10 -10 ------- Run | Yrd Mat Min Exi Traps Triggered 2 | . 2 . . Indirectly . | . . . . Trap Hack Attempts . | . . . . Triggered . | . . . . Disarmed . | . . . . Reprogrammed . | . . . . Reused . | . . . . Traps Extracted . | . . . . Installed . | . . . . Triggered . | . . . . Machines | -11 -10 -10 -10 ---------- Run | Yrd Mat Min Exi Machines Disabled 1 | . . 1 . Max in Single Turn 1 | . . 1 . Machines Repaired . | . . . . Machines Dismantled . | . . . . Machines Sabotaged . | . . . . Overloaded Fab Kills . | . . . . Hacking | -11 -10 -10 -10 --------- Run | Yrd Mat Min Exi Machines Accessed 8 | . 8 . . Terminals 6 | . 6 . . Fabricators . | . . . . Repair Stations . | . . . . Recycling Units 2 | . 2 . . Scanalyzers . | . . . . Garrison Access . | . . . . Total Hacks 25 | . 25 . . Successful 18 | . 18 . . Failed 7 | . 7 . . Catastrophic . | . . . . Database Lockouts . | . . . . Manual 8 | . 8 . . Terminals 18 | . 18 . . Fabricators . | . . . . Repair Stations . | . . . . Recycling Units 7 | . 7 . . Scanalyzers . | . . . . Garrison Access . | . . . . Terminal Hacks 8 | . 8 . . Branch Access Points 1 | . 1 . . Terminal Index 1 | . 1 . . Alert Level 1 | . 1 . . Locate Traps 2 | . 2 . . Dispatch Records 1 | . 1 . . Reinforcement Status 1 | . 1 . . Registered Components 1 | . 1 . . Fabricator Hacks . | . . . . Repair Station Hacks . | . . . . Recycling Unit Hacks 5 | . 5 . . Report Inventory 3 | . 3 . . Retrieve Components 2 | . 2 . . Scanalyzer . | . . . . Garrison Access Hacks . | . . . . Unauthorized Hacks 5 | . 5 . . Terminals 5 | . 5 . . Botnet 5 | . 5 . . Fabricators . | . . . . Repair Stations . | . . . . Recycling Units . | . . . . Scanalyzers . | . . . . Garrison Access . | . . . . Data Cores Recovered 1 | . 1 . . Used . | . . . . Hacking Detections 7 | . 7 . . Full Trace Events 2 | . 2 . . Feedback Events . | . . . . Feedback Blocked . | . . . . Robot Schematics Acquired . | . . . . Robots Built . | . . . . Authchips . | . . . . Time . | . . . . Total Robot Build Rating . | . . . . Part Schematics Acquired . | . . . . Parts Built . | . . . . Authchips . | . . . . Time . | . . . . Total Part Build Rating . | . . . . Parts Repaired . | . . . . Time . | . . . . Parts Recycled . | . . . . Recycled Matter . | . . . . Retrieved Matter . | . . . . Retrieved Components 19 | . 19 . . Parts Scanalyzed . | . . . . Part Schematics Acquired . | . . . . Parts Damaged . | . . . . Bothacking | -11 -10 -10 -10 ------------ Run | Yrd Mat Min Exi Used RIF Installer . | . . . . Robots Hacked . | . . . . Non-combat . | . . . . Combat . | . . . . Robot Hacks Applied . | . . . . Relay Couplers Released . | . . . . Fabnet Peak Effective % . | . . . . Robots Rewired . | . . . . Allies Hacked . | . . . . Hacks Repelled . | . . . . Allies | -11 -10 -10 -10 -------- Run | Yrd Mat Min Exi Total Allies 4 | . . 4 . Largest Group 4 | . . 4 1 Highest-Rated Group 71 | . . 71 16 Highest-Rated Ally 31 | . . 31 16 Total Orders . | . . . . Ally Attacks 35 | . . 32 3 Total Damage 323 | . . 292 31 Kills 5 | . . 5 . Allies Corrupted . | . . . . Allies Melted . | . . . . Intel | -11 -10 -10 -10 ------- Run | Yrd Mat Min Exi Active Infowar (turns) . | . . . . Robot Analysis Total . | . . . . Derelict Logs Recovered . | . . . . Drone Launches . | . . . . Drone Recoveries . | . . . . Exploration | -11 -10 -10 -10 ------------- Run | Yrd Mat Min Exi Turns Passed 2344 | 57 1631 562 94 Spaces Moved 1362 | 50 1003 268 41 Core 20 | 20 . . . Treads . | . . . . Legs 1342 | 30 1003 268 41 Wheels . | . . . . Hover . | . . . . Flight . | . . . . Fastest Speed 50 | 50 120 190 190 Average Speed 153 | 92 145 190 190 Slowest Speed 330 | 120 190 330 190 Overloaded Moves . | . . . . Propulsion Burnouts . | . . . . Robots Hopped . | . . . . Potential Cave-ins . | . . . . Cave-ins Triggered . | . . . . Exploration Rate (%) 43 | 4 93 62 16 Regions Visited 3 Branch Regions 2 Pre-discovered Areas . | . . . . Known Exits Taken 1 | . 1 . . Unknown Exits Taken 2 | 1 . 1 . Scrap Searched 1 | . . 1 . Spaces Dug . | . . . . Terrain Destroyed 104 | . . 104 . Melee . | . . . . Projectile . | . . . . AOE 104 | . . 104 . Terrain Rammed . | . . . . Walls Destroyed . | . . . . Machines Disabled . | . . . . Actions | -11 -10 -10 -10 --------- Run | Yrd Mat Min Exi Total 1509 | 60 1103 297 49 Wait 32 | . 32 . . Move 1359 | 49 1002 267 41 Hop . | . . . . Pick Up 26 | 5 20 1 . Fast Attach 1 | 1 . . . Attach 12 | 5 2 5 . Detach . | . . . . Swap 5 | . 4 1 . Drop 5 | . 5 . . Fire 65 | . 37 20 8 Melee . | . . . . Ram . | . . . . Kick 4 | . 1 3 . Crush . | . . . . Escape Stasis . | . . . . Rewire . | . . . . Trap . | . . . . Miscellaneous . | . . . . Route ------- -11/Scrapyard -10/Materials (discovered 6 exits: [*Mat x3] / *Min x2 / [*Sub]) -10/Mines (discovered 3 exits: [*Mat x2] / [*Exi]) -10/Exiles (discovered 1 exit: [*Min]) History --------- Turn | Location | Event 4 | -11/Scrapyard | Discovered new exit (range 15) 58 | -11/Scrapyard | Entered Materials 306 | -10/Materials | Build established: Mutant 552 | -10/Materials | Identified exit to Mines 642 | -10/Materials | Discovered new exit (range 10) 707 | -10/Materials | Discovered new exit (range 5) 805 | -10/Materials | Discovered new exit (range 16) 1060 | -10/Materials | Discovered new exit (range 16) 1689 | -10/Materials | Entered Mines 1692 | -10/Mines | Received a Mining Laser from a helpful Derelict 1739 | -10/Mines | Discovered new exit (range 12) 1818 | -10/Mines | Assembled infested the area 1828 | -10/Mines | Assisted by bots powering up and referring to "LRC-V3" 1872 | -10/Mines | Lost 3 allies 1935 | -10/Mines | Destroyed 14 combat bots 2075 | -10/Mines | Discovered new exit (range 6) 2244 | -10/Mines | Deemed a non-threat by the Exiles lab entrance 2244 | -10/Mines | Discovered new exit (range 5) 2251 | -10/Mines | Entered Exiles 2251 | -10/Exiles | Accompanied by 1 ally 2282 | -10/Exiles | Discovered new exit (range 15) 2303 | -10/Exiles | Met 8R-AWN 2328 | -10/Exiles | Attacked by the Exiles 2333 | -10/Exiles | Core integrity fell below 50% 2342 | -10/Exiles | Core integrity fell below 20% 2345 | -10/Exiles | Destroyed by as-58843 with Assembled Heavy Rifle Last Messages --------------- 02330_ HV Slug penetrates as-61359. 02330_ as-61359 suffers critical hit (Destroy). 02330_ as-61359 destroyed. 02330_ Machine disabled. 02332_ Penetrated by HV Slug. 02332_ HV Slug penetrates Machine. 02332_ HV Slug penetrates Wall. 02334_ HV Slug penetrates as-98826. 02334_ HV Slug penetrates as-58843. 02334_ Penetrated by HV Slug. 02334_ HV Slug penetrates as-18639. 02334_ as-18639 destroyed. 02335_ Trooper 1b system corrupted by crushing effect. 02335_ Trooper 1b destroyed. 02337_ Penetrated by HV Slug. 02339_ as-98826 destroyed. 02340_ as-57156 destroyed. 02341_ HV Slug penetrates Wall. 02341_ Penetrated by HV Slug. 02345_ HV Slug penetrates Wall. Map ----- +----------------------------------------------------+ | ?????????????????????????????????????????????????? | | ?????????????????????????????????????????????????? | | ?????????????????????????????????????????????????? | | ?????????????????????????????????????????????????? | | ?????????????????????????????????????????????????? | | ?????????????????????????????????????????????????? | | ?????????????????????????????????????????????????? | | ?????????????????????????????????????????????????? | | ?????????????????????????????????????????????????? | | ?????????????????????????????????????????????????? | | ?????????????????????????????????????????????????? | | ?????????????????????????????????????????????????? | | ?????????????????????????????????????????????????? | | ?????????????????????????????????????????????????? | | ?????????????????????????????????????????????????? | | ?????????????????????????????????????????????????? | | ????????????? ???????????????#####?????????????? | | ????????????? " "???????????##" #?????????????? | | ???????????? ""??????????#" #?????????????# | | ???????????? ""????????##" ##????????????# | | ???????????? "?????### ###????????### | | ??????????? #????# g ########## | | ??????????? #??#; #""""## | | ?????????? ### * | | ?????????? ## * | | ?????????? @ #### | | ?????????? %% ""#?#"""""#### | | ?????????? ;"""##?#######??#### | | ??????????? % ######??????????????##### | | ??????????? ;????????????????????????# | | ???????????? % ##????????????????????????? | | ????????????"" a a "??????????????????????????? | | ?????????????" a "???????????????????????????? | | ?????????????#" "#???????????????????????????? | | ??????????????#######????????????????????????????? | | ?????????????????????????????????????????????????? | | ?????????????????????????????????????????????????? | | ?????????????????????????????????????????????????? | | ?????????????????????????????????????????????????? | | ?????????????????????????????????????????????????? | | ?????????????????????????????????????????????????? | | ?????????????????????????????????????????????????? | | ?????????????????????????????????????????????????? | | ?????????????????????????????????????????????????? | | ?????????????????????????????????????????????????? | | ?????????????????????????????????????????????????? | | ?????????????????????????????????????????????????? | | ?????????????????????????????????????????????????? | | ?????????????????????????????????????????????????? | | ?????????????????????????????????????????????????? | +----------------------------------------------------+ Best States ------------- Heat Dissipation 25 Energy Generation 14 Energy Capacity 250 Matter Stores 300 Matter Capacity 300 Sight Range 16 Terrain Scan Density 10 Evasion (%) 55 Targeting Accuracy 6 Item Schematics ----------------- None Robot Schematics ------------------ None Fabricated ------------ Nothing Repaired ---------- Nothing Alien Tech Used ----------------- None Achievements -------------- Exterminator Challenges ------------ None Game ------ Seed AlertFortressKatana Manual? 0 Play Time 00:21:01 Cumulative 34.2 hours Start 2025.06.16 @ 21:33:58 End 2025.06.16 @ 21:54:30 Sessions 1 Manual Loads 0 Difficulty Rogue Special Mode None Game No. 43 Rogue 43 Adventurer 0 Explorer 0 Win Type - Total 1 Types 1/0/0/0/0/0/0/0/0/0 Lore% 18 Gallery% 27 Achievement% 32 Wizard Run 0 Options --------- Layout 0 ASCII 0 Keyboard 0 Movement Numpad Keybinds 0 Fullscreen 1 Font 24/Smallcaps Map View 76x50 Zoom Use 0% Tactical HUD 1 Map Filters NONE Filters NONE Steam 1 RUN: 8aec3e53-53b5-422d-9fdd-3bd95541d819